fUST/lending_fUST_20250603
["ID","MTS","AMOUNT","RATE_DAILY","PERIOD"]
[363945269,1748943040673,-500.0,0.00021243,2]
[363945271,1748943040682,-500.0,0.00021243,2]
[363945273,1748943040691,-152.53205532,0.00021243,2]
[363945274,1748943040701,-151.0,0.00021265,2]
[363945276,1748943040711,-151.0,0.00021265,2]
[363945278,1748943040722,-1565.76036882,0.00021279,5]
[363945280,1748943040731,-151.0,0.0002128,15]
[363945282,1748943040742,-3000.0,0.000213,2]
[363945284,1748943040751,-200.0,0.000213,20]
[363945286,1748943040762,-200.0,0.000213,20]
[363945288,1748943040770,-200.0,0.000213,20]
[363945290,1748943040780,-200.0,0.000213,20]
[363945292,1748943040789,-200.0,0.000213,20]
[363945294,1748943040798,-200.0,0.000213,20]
[363945296,1748943040807,-200.0,0.000213,20]
[363945298,1748943040816,-166.0,0.000213,20]
[363945300,1748943040825,-250.0,0.000213,30]
[363945302,1748943040835,-3000.0,0.0002131,2]
[363945304,1748943040844,-151.0,0.0002131,2]
[363945306,1748943040854,-151.0,0.0002131,2]
[363945308,1748943040863,-151.0,0.0002131,2]
[363945310,1748943040873,-151.0,0.0002131,2]
[363945312,1748943040882,-151.0,0.0002131,2]
[363945313,1748943040891,-3000.0,0.0002132,2]
[363945315,1748943040901,-151.0,0.0002132,2]
[363945317,1748943040911,-151.0,0.0002132,2]
[363945319,1748943040920,-151.0,0.0002132,2]
[363945321,1748943040930,-353.09355,0.0002132,2]
[363945323,1748943040939,-353.09355,0.0002132,2]
[363945325,1748943040948,-3000.0,0.0002133,2]
[363945327,1748943040958,-3000.0,0.0002134,2]
[363945329,1748943040967,-3000.0,0.0002135,2]
[363945331,1748943040976,-3000.0,0.0002136,2]
[363945333,1748943040985,-917.81,0.00021368,2]
[363945335,1748943040994,-2828.5,0.00021369,2]
[363945337,1748943041004,-561.37,0.00021369,2]
[363945339,1748943041013,-489.13,0.00021369,2]
[363945341,1748943041023,-849.11,0.00021369,2]
[363945343,1748943041033,-634.83,0.00021369,2]
[363945345,1748943041043,-488.19,0.00021369,2]
[363945347,1748943041053,-1027.29,0.00021369,2]
[363945349,1748943041062,-858.15,0.00021369,2]
[363945351,1748943041072,-921.1,0.00021369,2]
[363945353,1748943041083,-695.19,0.00021369,2]
[363945355,1748943041092,-477.86,0.00021369,2]
[363945356,1748943041101,-440.0,0.00021369,2]
[363945358,1748943041111,-473.61,0.00021369,2]
[363945360,1748943041120,-493.19,0.00021369,2]
[363945362,1748943041131,-3000.0,0.0002137,2]
[363945364,1748943041141,-3000.0,0.0002138,2]
[363945366,1748943041151,-3000.0,0.0002139,2]
[363945368,1748943041160,-3000.0,0.000214,2]
[363945370,1748943041170,-3000.0,0.0002141,2]
[363945372,1748943041179,-3000.0,0.0002142,2]
[363945374,1748943041189,-3000.0,0.0002143,2]
[363945376,1748943041199,-3000.0,0.0002144,2]
[363945378,1748943041208,-3000.0,0.0002145,2]
[363945380,1748943041218,-3000.0,0.0002146,2]
[363945382,1748943041227,-151.0,0.00021465,16]
[363945384,1748943041237,-917.81,0.00021468,2]
[363945385,1748943041246,-3000.0,0.0002147,2]
[363945387,1748943041256,-3000.0,0.0002148,2]
[363945389,1748943041265,-3000.0,0.0002149,2]
[363945391,1748943041275,-223.0315306,0.00021499,2]
[363945393,1748943041284,-151.0,0.00021499,2]
[363945395,1748943041294,-151.0,0.00021499,2]
[363945397,1748943041303,-151.0,0.00021499,2]
[363945399,1748943041313,-162967.24567,0.00021499,2]
[363945401,1748943041323,-2006.24,0.000215,2]
[363945403,1748943041332,-3000.0,0.000215,2]
[363945405,1748943041341,-3000.0,0.0002151,2]
[363945407,1748943041351,-3000.0,0.0002152,2]
[363945408,1748943041362,-1565.76036882,0.00021521,5]
[363945410,1748943041372,-3000.0,0.0002153,2]
[363945412,1748943041381,-3000.0,0.0002154,2]
[363945414,1748943041390,-3000.0,0.0002155,2]
[363945416,1748943041400,-5369.318302,0.0002156,2]
[363945418,1748943041409,-917.81,0.00021568,2]
[363945419,1748943041419,-159.179162,0.00021597,6]
[363945420,1748943041429,-175.085034,0.00021626,3]
[363945421,1748943041439,-159.179162,0.00021626,3]
[363945422,1748943041449,-194.475236,0.00021643,2]
[363945423,1748943041458,-194.475236,0.00021643,2]
[363945424,1748943041467,-717.96,0.00021643,4]
[363945425,1748943041476,-2828.5,0.00021643,2]
[363945426,1748943041487,-561.37,0.00021643,2]
[363945427,1748943041496,-489.13,0.00021643,2]
[363945428,1748943041505,-849.11,0.00021643,2]
[363945429,1748943041515,-634.83,0.00021643,2]
[363945430,1748943041526,-488.19,0.00021643,2]
[363945441,1748943041643,-1027.29,0.00021643,2]
[363945443,1748943041654,-858.15,0.00021643,2]
[363945445,1748943041664,-921.1,0.00021643,2]
[363945448,1748943041678,-695.19,0.00021643,2]
[363945449,1748943041687,-477.86,0.00021643,2]
[363945451,1748943041697,-440.0,0.00021643,2]
[363945453,1748943041707,-473.61,0.00021643,2]
[363945455,1748943041719,-493.19,0.00021643,2]
[363945457,1748943041728,-151.0,0.0002165,18]
[363945460,1748943041739,-917.81,0.00021668,2]
[363945462,1748943041751,-255.0,0.000217,2]
[363945463,1748943041761,-164.53788797,0.00021701,2]
[363945465,1748943041770,-159.179162,0.00021709,10]
[363945467,1748943041780,-159.179162,0.00021748,7]
[363945469,1748943041790,-1565.76036882,0.00021762,5]
[363945471,1748943041799,-917.81,0.00021768,2]
[363945473,1748943041809,-151.0,0.00021788,2]
[363945475,1748943041821,-151.0,0.00021788,2]
[363945477,1748943041831,-367.38058,0.00021788,2]
[363945479,1748943041840,-367.38058,0.00021788,2]
[363945481,1748943041850,-528.291518,0.00021788,2]
[363945483,1748943041860,-528.291518,0.00021788,2]
[363945485,1748943041869,-1000.0,0.00021791,2]
[363945487,1748943041879,-660.56,0.000218,2]
[363945489,1748943041888,-3800.0,0.000218,2]
[363945491,1748943041898,-552.03,0.000218,14]
[363945493,1748943041907,-3592.62,0.000218,2]
[363945495,1748943041916,-151.0,0.00021835,19]
[363945497,1748943041925,-917.81,0.00021868,2]
[363945499,1748943041935,-199.294933,0.00021888,2]
[363945501,1748943041944,-151.0,0.00021888,2]
[363945503,1748943041954,-574.694025,0.00021888,2]
[363945505,1748943041964,-355.0,0.00021917,2]
[363945507,1748943041974,-151.0,0.00021917,2]
[363945509,1748943041984,-500.0,0.00021917,2]
[363945511,1748943041993,-2828.5,0.00021917,2]
[363945513,1748943042002,-561.37,0.00021917,2]
[363945515,1748943042012,-489.13,0.00021917,2]
[363945517,1748943042021,-849.11,0.00021917,2]
[363945519,1748943042031,-634.83,0.00021917,2]
[363945521,1748943042041,-488.19,0.00021917,2]
[363945523,1748943042050,-1027.29,0.00021917,2]
[363945525,1748943042060,-858.15,0.00021917,2]
[363945527,1748943042069,-921.1,0.00021917,2]
[363945529,1748943042078,-695.19,0.00021917,2]
[363945531,1748943042087,-477.86,0.00021917,2]
[363945533,1748943042097,-32205.71513442,0.00021917,2]
[363945535,1748943042106,-440.0,0.00021917,2]
[363945537,1748943042115,-473.61,0.00021917,2]
[363945539,1748943042125,-493.19,0.00021917,2]
[363945541,1748943042135,-151.0,0.00021918,2]
[363945543,1748943042146,-3195.25059897,0.00021946,2]
[363945545,1748943042156,-395.810148,0.00021968,7]
[363945547,1748943042165,-395.810148,0.00021968,7]
[363945549,1748943042175,-917.81,0.00021968,5]
[363945551,1748943042184,-500.0,0.00021973,2]
[363945553,1748943042194,-500.92514887,0.00021973,2]
[363945555,1748943042203,-500.0,0.00021973,2]
[363945557,1748943042213,-501.90722136,0.00021973,2]
[363945559,1748943042223,-500.0,0.00021973,2]
[363945561,1748943042233,-600.0,0.00021973,2]
[363945563,1748943042243,-500.0,0.00021973,2]
[363945566,1748943042252,-500.0,0.00021973,2]
[363945567,1748943042262,-169398.4797091,0.00022,4]
[363945569,1748943042272,-19191.61325756,0.00022,2]
[363945571,1748943042283,-200000.0,0.00022,2]
[363945573,1748943042292,-152.00925422,0.00022,2]
[363945575,1748943042302,-2000.0,0.00022,2]
[363945577,1748943042311,-27311.41051463,0.00022,2]
[363945579,1748943042321,-151.0,0.00022,7]
[363945581,1748943042330,-182.977107,0.00022,7]
[363945582,1748943042340,-151.0,0.00022,7]
[363945584,1748943042350,-152.259077,0.00022,7]
[363945586,1748943042359,-230.414339,0.00022,7]
[363945588,1748943042369,-151.0,0.00022,7]
[363945590,1748943042379,-151.0,0.00022,7]
[363945592,1748943042388,-151.0,0.00022,7]
[363945594,1748943042398,-152.013422,0.00022,7]
[363945596,1748943042407,-151.0,0.00022,7]
[363945598,1748943042416,-151.0,0.00022,7]
[363945600,1748943042425,-151.0,0.00022,7]
[363945602,1748943042434,-151.0,0.00022,7]
[363945604,1748943042443,-151.0,0.00022,7]
[363945606,1748943042453,-151.0,0.00022,7]
[363945608,1748943042464,-151.0,0.00022,7]
[363945610,1748943042473,-151.0,0.00022,7]
[363945612,1748943042483,-151.0,0.00022,7]
[363945614,1748943042493,-151.0,0.00022,7]
[363945616,1748943042502,-151.0,0.00022,7]
[363945617,1748943042511,-151.0,0.00022,7]
[363945619,1748943042521,-151.0,0.00022,7]
[363945621,1748943042531,-151.0,0.00022,7]
[363945623,1748943042541,-353.09355,0.00022,7]
[363945625,1748943042551,-353.09355,0.00022,7]
[363945627,1748943042561,-353.09355,0.00022,7]
[363945629,1748943042571,-353.09355,0.00022,7]
[363945631,1748943042580,-151.0,0.00022,7]
[363945633,1748943042590,-152.579211,0.00022,7]
[363945635,1748943042600,-194.475236,0.00022,7]
[363945637,1748943042609,-194.475236,0.00022,7]
[363945639,1748943042618,-194.475236,0.00022,7]
[363945641,1748943042627,-194.475236,0.00022,7]
[363945643,1748943042637,-151.0,0.00022,7]
[363945645,1748943042647,-151.0,0.00022,7]
[363945647,1748943042656,-151.0,0.00022,7]
[363945649,1748943042667,-151.0,0.00022,7]
[363945651,1748943042680,-151.0,0.00022,7]
[363945653,1748943042689,-151.0,0.00022,7]
[363945656,1748943042699,-151.0,0.00022,7]
[363945658,1748943042708,-151.0,0.00022,7]
[363945660,1748943042717,-151.0,0.00022,7]
[363945662,1748943042726,-151.0,0.00022,7]
[363945664,1748943042735,-574.694025,0.00022,7]
[363945666,1748943042745,-574.694025,0.00022,7]
[363945668,1748943042753,-151.0,0.00022,7]
[363945670,1748943042763,-151.0,0.00022,7]
[363945672,1748943042771,-151.0,0.00022,7]
[363945674,1748943042781,-151.0,0.00022,7]
[363945676,1748943042791,-151.0,0.00022,7]
[363945678,1748943042800,-151.0,0.00022,7]
[363945680,1748943042808,-367.38058,0.00022,7]
[363945682,1748943042818,-367.38058,0.00022,7]
[363945684,1748943042827,-367.38058,0.00022,7]
[363945686,1748943042837,-367.38058,0.00022,7]
[363945688,1748943042846,-261.942965,0.00022,7]
[363945689,1748943042855,-151.0,0.00022,7]
[363945691,1748943042865,-151.0,0.00022,7]
[363945693,1748943042874,-151.0,0.00022,7]
[363945695,1748943042883,-151.0,0.00022,7]
[363945697,1748943042892,-334.611292,0.00022,7]
[363945699,1748943042902,-334.611292,0.00022,7]
[363945701,1748943042912,-334.611292,0.00022,7]
[363945703,1748943042921,-334.611292,0.00022,7]
[363945705,1748943042930,-452.121155,0.00022,7]
[363945707,1748943042939,-452.121155,0.00022,7]
[363945709,1748943042949,-151.0,0.00022,7]
[363945711,1748943042959,-151.0,0.00022,7]
[363945713,1748943042968,-151.0,0.00022,7]
[363945715,1748943042978,-151.0,0.00022,7]
[363945717,1748943042987,-528.291518,0.00022,2]
[363945718,1748943042996,-528.291518,0.00022,2]
[363945719,1748943043005,-528.291518,0.00022,2]
[363945720,1748943043014,-528.291518,0.00022,2]
[363945721,1748943043023,-151.0,0.00022,7]
[363945722,1748943043035,-151.0,0.00022,7]
[363945723,1748943043044,-151.0,0.00022,7]
[363945724,1748943043053,-151.0,0.00022,7]
[363945725,1748943043063,-151.0,0.00022,7]
[363945726,1748943043072,-151.0,0.00022,7]
[363945727,1748943043081,-151.0,0.00022,7]
[363945728,1748943043091,-151.0,0.00022,7]
[363945729,1748943043101,-933.36661,0.00022,7]
[363945730,1748943043110,-933.36661,0.00022,7]
[363945731,1748943043120,-933.36661,0.00022,7]
[363945732,1748943043129,-933.36661,0.00022,7]
[363945733,1748943043138,-229.928415,0.00022,7]
[363945734,1748943043147,-229.928415,0.00022,7]
[363945735,1748943043157,-229.928415,0.00022,7]
[363945736,1748943043166,-229.928415,0.00022,7]
[363945737,1748943043175,-327.791094,0.00022,7]
[363945738,1748943043184,-327.791094,0.00022,7]
[363945739,1748943043193,-327.791094,0.00022,7]
[363945740,1748943043201,-327.791094,0.00022,7]
[363945741,1748943043209,-181.378252,0.00022,7]
[363945742,1748943043218,-181.378252,0.00022,7]
[363945743,1748943043226,-181.378252,0.00022,7]
[363945744,1748943043235,-181.378252,0.00022,7]
[363945745,1748943043243,-151.0,0.00022,7]
[363945746,1748943043251,-151.0,0.00022,7]
[363945747,1748943043260,-151.0,0.00022,7]
[363945748,1748943043270,-151.889729,0.00022,7]
[363945749,1748943043280,-1573.240447,0.00022,7]
[363945750,1748943043290,-1573.240447,0.00022,7]
[363945751,1748943043299,-151.0,0.00022,7]
[363945752,1748943043309,-151.0,0.00022,7]
[363945754,1748943043318,-1573.240447,0.00022,7]
[363945756,1748943043328,-1573.240447,0.00022,7]
[363945758,1748943043337,-151.0,0.00022,7]
[363945759,1748943043347,-151.0,0.00022,7]
[363945760,1748943043357,-151.0,0.00022,7]
[363945761,1748943043367,-151.0,0.00022,7]
[363945763,1748943043377,-151.0,0.00022,7]
[363945765,1748943043387,-151.0,0.00022,7]
[363945767,1748943043397,-151.0,0.00022,7]
[363945768,1748943043407,-151.0,0.00022,7]
[363945769,1748943043416,-151.0,0.00022,7]
[363945770,1748943043426,-151.0,0.00022,7]
[363945771,1748943043435,-151.0,0.00022,7]
[363945772,1748943043445,-151.0,0.00022,7]
[363945773,1748943043455,-373.689104,0.00022,7]
[363945774,1748943043465,-373.689104,0.00022,7]
[363945775,1748943043474,-151.0,0.00022,7]
[363945776,1748943043484,-151.0,0.00022,7]
[363945777,1748943043494,-373.689104,0.00022,7]
[363945778,1748943043503,-373.689104,0.00022,7]
[363945779,1748943043513,-151.0,0.00022,7]
[363945780,1748943043523,-151.0,0.00022,7]
[363945781,1748943043533,-299.161862,0.00022,7]
[363945782,1748943043543,-299.161862,0.00022,7]
[363945783,1748943043552,-299.161862,0.00022,7]
[363945784,1748943043562,-299.161862,0.00022,7]
[363945785,1748943043572,-151.0,0.00022,7]
[363945786,1748943043581,-151.474518,0.00022,7]
[363945787,1748943043591,-451.653601,0.00022,7]
[363945788,1748943043601,-451.653601,0.00022,7]
[363945789,1748943043611,-451.653601,0.00022,7]
[363945790,1748943043620,-451.653601,0.00022,7]
[363945791,1748943043630,-151.0,0.00022,7]
[363945792,1748943043639,-152.97156,0.00022,7]
[363945793,1748943043648,-158.17402,0.00022,7]
[363945794,1748943043658,-2324.435837,0.00022,7]
[363945795,1748943043669,-2324.435837,0.00022,7]
[363945796,1748943043681,-2324.435837,0.00022,7]
[363945797,1748943043690,-2324.435837,0.00022,7]
[363945798,1748943043699,-151.0,0.00022,7]
[363945799,1748943043709,-151.0,0.00022,7]
[363945800,1748943043720,-151.0,0.00022,7]
[363945801,1748943043730,-151.0,0.00022,7]
[363945802,1748943043740,-247.641833,0.00022,7]
[363945803,1748943043753,-247.641833,0.00022,7]
[363945804,1748943043763,-247.641833,0.00022,7]
[363945805,1748943043773,-247.641833,0.00022,7]
[363945806,1748943043783,-151.0,0.00022,7]
[363945807,1748943043793,-773.530678,0.00022,7]
[363945808,1748943043802,-151.0,0.00022,7]
[363945809,1748943043812,-773.530678,0.00022,7]
[363945810,1748943043821,-151.0,0.00022,7]
[363945811,1748943043830,-151.0,0.00022,7]
[363945812,1748943043841,-773.530678,0.00022,7]
[363945813,1748943043851,-773.530678,0.00022,7]
[363945814,1748943043861,-614.72324,0.00022,7]
[363945815,1748943043870,-614.72324,0.00022,7]
[363945816,1748943043880,-614.72324,0.00022,7]
[363945817,1748943043889,-614.72324,0.00022,7]
[363945818,1748943043898,-327.35476,0.00022,7]
[363945819,1748943043908,-327.35476,0.00022,7]
[363945820,1748943043917,-327.35476,0.00022,7]
[363945821,1748943043926,-327.35476,0.00022,7]
[363945822,1748943043936,-12670.76136593,0.00022,7]
[363945823,1748943043946,-225.620091,0.00022,7]
[363945824,1748943043955,-225.620091,0.00022,7]
[363945825,1748943043965,-225.620091,0.00022,7]
[363945826,1748943044078,-225.620091,0.00022,7]
[363945827,1748943044088,-395.810148,0.00022,7]
[363945828,1748943044099,-395.810148,0.00022,7]
[363945829,1748943044108,-395.810148,0.00022,7]
[363945830,1748943044118,-395.810148,0.00022,7]
[363945831,1748943044128,-215.546178,0.00022,7]
[363945832,1748943044137,-215.546178,0.00022,7]
[363945833,1748943044147,-215.546178,0.00022,7]
[363945834,1748943044158,-215.546178,0.00022,7]
[363945835,1748943044168,-1565.76036882,0.00022003,6]
[363945836,1748943044178,-500.0,0.00022018,2]
[363945837,1748943044188,-163.5396541,0.00022018,2]
[363945838,1748943044197,-505.00855098,0.00022018,2]
[363945839,1748943044207,-211.39485195,0.0002202,20]
[363945840,1748943044216,-917.81,0.00022068,4]
[363945841,1748943044226,-5113.18988448,0.00022111,7]
[363945842,1748943044235,-917.81,0.00022168,3]
[363945843,1748943044244,-2200.0,0.00022173,2]
[363945844,1748943044254,-501.27760558,0.00022176,2]
[363945845,1748943044263,-717.96,0.00022191,5]
[363945846,1748943044272,-2828.5,0.00022191,2]
[363945847,1748943044282,-561.37,0.00022191,2]
[363945848,1748943044291,-489.13,0.00022191,2]
[363945849,1748943044301,-849.11,0.00022191,2]
[363945850,1748943044311,-634.83,0.00022191,2]
[363945851,1748943044321,-488.19,0.00022191,2]
[363945852,1748943044331,-1027.29,0.00022191,2]
[363945853,1748943044341,-858.15,0.00022191,2]
[363945854,1748943044351,-921.1,0.00022191,2]
[363945855,1748943044361,-695.19,0.00022191,2]
[363945856,1748943044370,-477.86,0.00022191,2]
[363945858,1748943044381,-440.0,0.00022191,2]
[363945860,1748943044391,-473.61,0.00022191,2]
[363945862,1748943044401,-493.19,0.00022191,2]
[363945864,1748943044410,-2387.96,0.000222,2]
[363945866,1748943044420,-1565.76036882,0.00022245,6]
[363945868,1748943044429,-917.81,0.00022268,6]
[363945869,1748943044439,-552.03,0.000223,14]
[363945870,1748943044449,-500.84808081,0.0002231,2]
[363945872,1748943044458,-1500.0,0.00022339,2]
[363945874,1748943044468,-153.0,0.00022356,2]
[363945876,1748943044478,-917.81,0.00022368,5]
[363945878,1748943044487,-500.0,0.00022465,2]
[363945880,1748943044497,-2828.5,0.00022465,2]
[363945882,1748943044506,-561.37,0.00022465,2]
[363945884,1748943044515,-489.13,0.00022465,2]
[363945886,1748943044525,-849.11,0.00022465,2]
[363945888,1748943044535,-634.83,0.00022465,2]
[363945889,1748943044544,-488.19,0.00022465,2]
[363945891,1748943044553,-1027.29,0.00022465,2]
[363945893,1748943044564,-858.15,0.00022465,2]
[363945895,1748943044574,-921.1,0.00022465,2]
[363945897,1748943044583,-695.19,0.00022465,2]
[363945899,1748943044593,-477.86,0.00022465,2]
[363945901,1748943044603,-440.0,0.00022465,2]
[363945903,1748943044613,-473.61,0.00022465,2]
[363945905,1748943044623,-493.19,0.00022465,2]
[363945907,1748943044633,-917.81,0.00022468,2]
[363945909,1748943044643,-1565.76036882,0.00022486,7]
[363945911,1748943044653,-51646.92,0.000225,2]
[363945913,1748943044662,-1582.6,0.000225,2]
[363945915,1748943044677,-157.746691,0.000225,7]
[363945917,1748943044686,-151.0,0.000225,7]
[363945919,1748943044695,-151.0,0.000225,7]
[363945921,1748943044705,-151.0,0.000225,7]
[363945923,1748943044716,-151.0,0.000225,7]
[363945925,1748943044725,-151.0,0.000225,7]
[363945927,1748943044735,-151.0,0.000225,7]
[363945929,1748943044746,-353.09355,0.000225,7]
[363945931,1748943044757,-353.09355,0.000225,7]
[363945933,1748943044767,-194.475236,0.000225,7]
[363945935,1748943044777,-194.475236,0.000225,7]
[363945937,1748943044786,-151.0,0.000225,7]
[363945939,1748943044796,-151.0,0.000225,7]
[363945941,1748943044805,-151.0,0.000225,7]
[363945943,1748943044815,-200.517061,0.000225,7]
[363945945,1748943044825,-151.0,0.000225,7]
[363945947,1748943044834,-574.694025,0.000225,7]
[363945949,1748943044844,-151.0,0.000225,7]
[363945951,1748943044854,-151.0,0.000225,7]
[363945952,1748943044864,-151.0,0.000225,7]
[363945954,1748943044874,-263.74298,0.000225,7]
[363945956,1748943044884,-367.38058,0.000225,7]
[363945958,1748943044894,-367.38058,0.000225,7]
[363945960,1748943044904,-151.0,0.000225,7]
[363945962,1748943044914,-151.0,0.000225,7]
[363945965,1748943044926,-334.611292,0.000225,7]
[363945967,1748943044935,-334.611292,0.000225,7]
[363945968,1748943044944,-452.121155,0.000225,7]
[363945970,1748943044954,-452.121155,0.000225,7]
[363945972,1748943044964,-151.0,0.000225,7]
[363945974,1748943044975,-151.0,0.000225,7]
[363945976,1748943044985,-528.291518,0.000225,2]
[363945978,1748943044994,-528.291518,0.000225,2]
[363945980,1748943045003,-151.0,0.000225,7]
[363945982,1748943045013,-281.215408,0.000225,7]
[363945984,1748943045023,-151.0,0.000225,7]
[363945986,1748943045034,-151.0,0.000225,7]
[363945989,1748943045044,-933.36661,0.000225,7]
[363945991,1748943045054,-933.36661,0.000225,7]
[363945992,1748943045064,-229.928415,0.000225,7]
[363945994,1748943045074,-229.928415,0.000225,7]
[363945996,1748943045083,-327.791094,0.000225,7]
[363945998,1748943045093,-327.791094,0.000225,7]
[363946000,1748943045102,-181.378252,0.000225,7]
[363946002,1748943045111,-181.378252,0.000225,7]
[363946004,1748943045120,-151.0,0.000225,7]
[363946006,1748943045129,-1573.240447,0.000225,7]
[363946008,1748943045139,-151.0,0.000225,7]
[363946010,1748943045149,-1573.240447,0.000225,7]
[363946012,1748943045158,-151.0,0.000225,7]
[363946014,1748943045167,-151.0,0.000225,7]
[363946016,1748943045177,-151.0,0.000225,7]
[363946018,1748943045187,-151.0,0.000225,7]
[363946020,1748943045197,-151.0,0.000225,7]
[363946022,1748943045206,-151.0,0.000225,7]
[363946024,1748943045215,-373.689104,0.000225,7]
[363946026,1748943045225,-151.0,0.000225,7]
[363946028,1748943045235,-373.689104,0.000225,7]
[363946030,1748943045245,-151.0,0.000225,7]
[363946032,1748943045254,-299.161862,0.000225,7]
[363946034,1748943045264,-299.161862,0.000225,7]
[363946036,1748943045274,-451.653601,0.000225,7]
[363946038,1748943045283,-451.653601,0.000225,7]
[363946040,1748943045293,-2324.435837,0.000225,7]
[363946042,1748943045303,-2324.435837,0.000225,7]
[363946044,1748943045314,-151.0,0.000225,7]
[363946046,1748943045324,-151.0,0.000225,7]
[363946048,1748943045333,-247.641833,0.000225,7]
[363946050,1748943045344,-247.641833,0.000225,7]
[363946052,1748943045354,-151.0,0.000225,7]
[363946054,1748943045363,-773.530678,0.000225,7]
[363946056,1748943045373,-151.0,0.000225,7]
[363946058,1748943045383,-773.530678,0.000225,7]
[363946060,1748943045394,-614.72324,0.000225,7]
[363946062,1748943045403,-614.72324,0.000225,7]
[363946064,1748943045413,-327.35476,0.000225,7]
[363946066,1748943045422,-327.35476,0.000225,7]
[363946068,1748943045432,-225.620091,0.000225,7]
[363946070,1748943045441,-225.620091,0.000225,7]
[363946072,1748943045451,-395.810148,0.000225,7]
[363946074,1748943045462,-395.810148,0.000225,7]
[363946076,1748943045471,-215.546178,0.000225,7]
[363946078,1748943045481,-215.546178,0.000225,7]
[363946080,1748943045491,-500.0,0.00022521,2]
[363946082,1748943045500,-1200.0,0.00022521,2]
[363946084,1748943045510,-500.0,0.00022521,2]
[363946086,1748943045520,-500.24804547,0.00022521,2]
[363946088,1748943045530,-1742.0,0.00022555,3]
[363946090,1748943045539,-1742.0,0.00022555,3]
[363946092,1748943045549,-1742.0,0.00022555,3]
[363946093,1748943045558,-1188.62037801,0.00022555,3]
[363946095,1748943045568,-1759.81617934,0.00022558,2]
[363946097,1748943045577,-917.81,0.00022568,4]
[363946099,1748943045586,-174.843733,0.00022603,2]
[363946101,1748943045596,-159.79694846,0.0002263,2]
[363946103,1748943045606,-917.81,0.00022668,7]
[363946105,1748943045617,-1565.76036882,0.00022728,7]
[363946107,1748943045626,-717.96,0.00022739,6]
[363946109,1748943045636,-2828.6867249,0.00022739,2]
[363946111,1748943045648,-561.49251432,0.00022739,2]
[363946113,1748943045658,-489.2030001,0.00022739,2]
[363946115,1748943045667,-849.21120165,0.00022739,2]
[363946117,1748943045679,-634.97212101,0.00022739,2]
[363946119,1748943045689,-488.33282187,0.00022739,2]
[363946121,1748943045698,-1027.50841049,0.00022739,2]
[363946123,1748943045707,-858.28905433,0.00022739,2]
[363946125,1748943045718,-921.11635733,0.00022739,2]